[Event "Fagernes GM Open Autumn 2024"]
[Site "Fagernes"]
[Date "2024.10.12"]
[Round "8.13"]
[White "Hansen, Torbjorn Ringdal"]
[Black "Wallace, John Paul"]
[Result "1-0"]
[ECO "C03"]
[WhiteElo "2415"]
[BlackElo "2373"]
[Annotator "TA"]
[PlyCount "125"]
[EventDate "2024.10.03"]
[EventType "swiss"]
[EventCountry "NOR"]
[SourceTitle "playchess.com"]
[Source "ChessBase"]
[SourceQuality "1"]
[TimeControl "40/6000:2400+30"]

{[%evp 9,125,9,13,13,25,0,35,35,74,53,70,68,77,59,62,62,86,73,70,65,55,66,86,73,208,90,92,25,27,33,33,27,22,27,39,16,17,25,320,332,317,312,303,327,310,0,514,529,470,446,438,442,916,851,939,922,864,856,835,820,820,270,218,0,0,0,0,0,0,0,0,-128,-125,-135,-99,-55,0,-70,-78,-94,-98,-96,-89,-96,0,0,0,0,0,0,0,-5065,-4606,-1837,0,0,-7,-1192,-149,-154,0,0,29979,29980,29985,29986,29986,29987,29987,29988,29988,29989,29989,29990,29996,29996,29996,29997]} 1. e4 {[%emt 0:00:00]} e6 {[%emt 0:00:00]} 2. d4 {[%emt 0:00:00]} d5 {[%emt 0:00:00]} 3. Nd2 {[%emt 0:00:00]} Be7 {[%emt 0:00:00]} 4. e5 {[%emt 0:00:00]} c5 {[%emt 0:00:00]} 5. c3 {[%emt 0:00:00]} Nc6 {[%emt 0:00:11]} 6. Bd3 {[%emt 0:00:00]} Bd7 {[%emt 0:18:24]} 7. Ndf3 {[%emt 0:05:32]} f6 {[%emt 0:00:23]} 8. Nh3 {[%emt 0:11:01] White is slightly better.} Qb6 {[%emt 0:15:55][%cal Rc5d4]} 9. O-O {[%emt 0:00:54]} fxe5 {[%emt 0:12:32]} 10. dxe5 {[%emt 0:00:15]} Nh6 {[%emt 0:02:29]} 11. Nhg5 {[%emt 0:05:01]} Bxg5 {[%emt 0:06:04]} 12. Bxg5 {[%emt 0:01:21]} Nf7 {[%emt 0:00:00][%cal Oc5c4]} 13. Be3 {[%emt 0:07:51][%cal Ob2b4] A strong pair of Bishops.} Qxb2 {[%emt 0:11:53]} 14. Bxc5 {[%emt 0:02:09] Black must now prevent Rc1.} b6 $1 {[%emt 0:00:10]} 15. Bd4 {[%emt 0:04:01]} Rc8 {[%emt 0:01:18]} 16. a4 $1 {[%emt 0:15:50]} Nfd8 {[%emt 0:10:56]} (16... Nxd4 $16 17. cxd4 O-O) 17. Rb1 {[%emt 0:12:03]} (17. Ng5 $1 $18) 17... Qa3 $16 {[%emt 0:00:00]} 18. Bb5 {[%emt 0:00:34]} (18. Be3 $16) 18... Na5 {[%emt 0:01:32]} 19. Ng5 $36 {[%emt 0:03:00][%cal Og5e4][%mdl 2048] White is more active.} Bxb5 {[%emt 0:00:00]} 20. axb5 {[%emt 0:00:00]} Qe7 {[%emt 0:02:11]} 21. f4 {[%emt 0:00:44]} g6 {[%emt 0:00:00]} 22. Qg4 {[%emt 0:00:54]} Kd7 {[%emt 0:00:12]} 23. Ra1 {[%emt 0:01:28]} Nf7 $2 {[%emt 0:05:39][%mdl 8192] [#]} (23... Rc7 $11) 24. Nxe6 $1 $18 {[%emt 0:04:43][%mdl 512]} Qxe6 {[%emt 0:04:22]} 25. f5 {[%emt 0:00:00]} gxf5 {[%emt 0:00:00]} 26. Rxf5 {[%emt 0:00:00]} Rcf8 {[%emt 0:00:12]} 27. Qf4 $2 {[%emt 0:00:10]} (27. Raf1 $1 $18 Kc8 28. Qh5) 27... Ke8 {[%emt 0:01:45][%mdl 8192]} (27... Rhg8 $11 28. Qf1 Ke8) 28. Rf6 {[%emt 0:03:07]} Qe7 {[%emt 0:00:00]} 29. Rf1 {[%emt 0:06:01]} Nd8 {[%emt 0:00:00]} 30. Qf3 {[%emt 0:00:29]} Nb3 {[%emt 0:00:49]} (30... Rhg8 $142 31. Qh5+ (31. Qxd5 Rf7 $11) 31... Kd7 32. e6+ Kc8 33. Rxf8 (33. Qxd5 Nxe6 34. Rxe6 Rxf1+ 35. Kxf1 Qb7 $18) 33... Rxf8) 31. Qh5+ {[%emt 0:03:38]} (31. Qxd5 Nxd4 32. Qxd4 (32. cxd4 Rxf6 33. Rxf6 Rf8 $11) 32... Qc5 $11) 31... Kd7 {[%emt 0:00:00] [#]} 32. e6+ $1 {[%emt 0:00:14][%mdl 512]} Kc8 {[%emt 0:00:00]} (32... Kc7 33. Rxf8) 33. Qxd5 {[%emt 0:04:07] Threatening mate with Qa8+.} Nxd4 {[%emt 0:00:00]} 34. Qa8+ {[%emt 0:02:20]} Kc7 {[%emt 0:00:00]} 35. cxd4 $2 {[%emt 0:00:37]} (35. Qxa7+ Nb7 36. cxd4 Qxf6 37. Rc1+ (37. Rxf6 Rxf6 38. Qa3 Rg6 $16) 37... Kd6 38. Qxb6+ (38. Qxb7 $2 Qf2+ 39. Kh1 Qf1+ 40. Rxf1 Rxf1#) 38... Kd5 39. Qxb7+ Kxe6 40. Rc6+ Kf5 41. Qd7+ (41. Rxf6+ Kxf6 42. Qc6+ Kg7 $18) 41... Ke4 42. Rxf6 Rxf6 43. Qe7+ Kf5 44. h4) 35... Qa3 {[%emt 0:00:35]} (35... Rxf6 $2 36. Rc1+ $18) 36. Qe4 {[%emt 0:01:15] Wards off Qe3+} (36. e7 $1 $18 {[%cal Re7d8]} Rxf6 37. Rxf6 Qe3+ 38. Rf2 Qxd4 39. g3 (39. exd8=B+ Rxd8 40. Qxa7+ Kd6 $18) (39. exd8=N Re8 $18) (39. Qxa7+ $2 Nb7 $19)) 36... Rxf6 $11 {[%emt 0:00:00]} 37. Rxf6 {[%emt 0:00:00]} Re8 {[%emt 0:00:32]} 38. Rf7+ {[%emt 0:00:00]} Re7 $1 {[%emt 0:00:53]} (38... Nxf7 39. Qc6+ Kb8 40. Qxe8+ Kc7 41. Qxf7+ (41. exf7 Qa1+ 42. Kf2 Qxd4+ 43. Kg3 Qd6+ 44. Kg4 Qg6+ 45. Kf4 Qh6+ 46. Ke4 Qg6+ 47. Kd4 Qd6+ 48. Ke3 Qc5+ 49. Ke4 Qc2+ 50. Ke5 Qe2+ 51. Kf6 Qf2+ 52. Kg7 Qd4+ 53. Kg8 Qg4+ 54. Kf8 h5 $18) 41... Kb8 42. Qe8+ (42. Qxh7 Qa1+ 43. Kf2 Qxd4+ 44. Ke2 Qb2+ 45. Kf3 Qc3+ 46. Kg4 Qc4+ 47. Kh5 Qxe6 $11) 42... Kb7 43. Qd7+ Kb8 44. e7 (44. Qxh7 Qa1+ 45. Kf2 Qxd4+ 46. Ke2 Qe5+ 47. Kf3 Qxe6 $11)) 39. Qe5+ {[%emt 0:00:00]} Kc8 {[%emt 0:00:00]} 40. Rxe7 {[%emt 0:00:00]} (40. Rf8 $11 Rc7 41. Rf1) 40... Qxe7 $17 {[%emt 0:00:00]} 41. d5 {[%emt 0:01:39]} Qc5+ {[%emt 0:16:52]} 42. Kf1 {[%emt 0:00:10]} Qxb5+ {[%emt 0:00:03]} 43. Kf2 {[%emt 0:00:36]} Qc5+ {[%emt 0:00:27]} 44. Kf3 {[%emt 0:00:46]} Qe7 {[%emt 0:01:32]} 45. g4 {[%emt 0:02:38]} a5 {[%emt 0:01:52]} 46. g5 {[%emt 0:09:56] [#]} Nb7 {[%emt 0:00:30]} ({Black should play} 46... a4 $1 $17 {[%cal Ra4a3] aiming for ...a3.} 47. Qc3+ Qc5) 47. h4 $1 $11 {[%emt 0:01:10][%cal Bh2h4,Bh4h5][%mdl 32]} a4 {[%emt 0:12:53]} 48. h5 $1 {[%emt 0:02:33]} Qa3+ {[%emt 0:02:00]} 49. Kg4 {[%emt 0:02:04]} Qb4+ {[%emt 0:00:03]} 50. Kf5 $2 {[%emt 0:05:34][%mdl 8192]} (50. Kh3 $11 Qd6 51. Qh8+ Nd8 52. Qc3+ Kb7 53. Qg7+ Ka6 54. e7 Qa3+ 55. Kg2 Qa2+ 56. Kg3 Qb3+ (56... Qxd5 $2 57. e8=Q $18) 57. Kf2 (57. Kf4 Qxd5 58. e8=Q Ne6+ $11) 57... Qa2+ (57... Qxd5 $2 58. e8=Q $18) (57... Qc2+ 58. Ke3 $11) 58. Ke3 Qb3+ 59. Kf2 Qc2+ (59... Qxd5 $2 60. e8=Q $18) 60. Ke3 Qc1+ 61. Ke2 Qc4+ 62. Ke3 Qc1+ (62... Qxd5 $2 63. e8=Q $18) 63. Ke2 Qc4+ 64. Ke3 Qc5+ (64... Qxd5 $2 65. e8=Q $18) 65. Ke2 Qc4+ (65... Qxd5 $2 66. e8=Q $18)) 50... Nd6+ $19 {[%emt 0:00:14]} 51. Kf6 {[%emt 0:00:09]} Kd8 $2 {[%emt 0:00:33]} (51... a3 $19 52. g6 hxg6) 52. Kg7 {[%emt 0:01:52]} a3 {[%emt 0:03:45]} 53. Qf6+ {[%emt 0:04:30][%mdl 8192]} (53. Kxh7 Qe4+ 54. Qxe4 Nxe4 55. g6 a2 56. g7 Nf6+ (56... a1=B $2 57. g8=Q+ Kc7 58. Kg6 $18) 57. Kg6 a1=Q (57... a1=B $2 58. h6 $18) 58. d6 Qe5 59. h6 Qxe6 60. Kg5 Qxd6 (60... Ne4+ 61. Kf4 Qxh6+ 62. Kxe4 Qxg7 63. Ke3 Qc3+ 64. Ke4 b5 65. Kf5 b4 66. Kg6 b3 67. Kf7 b2 68. Kg6 b1=Q+ 69. Kf7 Qf5+ 70. Kg8 Qg6+ 71. Kf8 Qh8#) 61. Kf5 Ke7 62. g8=N+ Nxg8 63. h7 Nf6 64. h8=Q Qc5+ (64... Qe6+ $2 65. Kf4 $19) 65. Kg6 Qg1+ 66. Kh6 Qe3+ 67. Kg6 Qg3+ (67... Qe4+ 68. Kh6 Qf4+ 69. Kg6 Qg4+ 70. Kh6 Qh5+ 71. Kg7 Qg5#) 68. Kh6 Qh4+ 69. Kg6 Qg4+ (69... Qxh8 70. Kg5 Qh2 71. Kf5 Qh4 72. Kg6 Qh5+ 73. Kg7 Qh7#) 70. Kh6 Qh5+ 71. Kg7 Qg5#) (53. e7+ $2 Ke8 54. Kg8 (54. Kxh7 $2 Qe4+ 55. Qxe4 Nxe4 $19) 54... Nc8 $19) (53. Kg8 $11 a2 54. e7+ Kd7 55. Qe6+ Kc7 56. e8=Q Nxe8 (56... a1=B 57. Q6e7#) 57. Qc6+ Kd8 58. Qa8+ Kd7 59. Qxa2) 53... Kc7 $2 {[%emt 0:00:01]} (53... Kc8 $19 {has better winning chances. ( -> ...Ne8+)} 54. Kxh7 a2) 54. Kxh7 $17 {[%emt 0:05:06] [#] Strongly threatening g6.} (54. Qe7+ $2 Kb8 55. Kxh7 a2 $19) 54... a2 $2 {[%emt 0:02:00]} ({Better is} 54... Nc8 $1 $17 {...a2 would now be deadly.} 55. g6 Ne7) 55. g6 $11 {[%emt 0:00:35] And now g7 would win. Chess con chili.} Nf5 {[%emt 0:01:24][%mdl 8192]} 56. Qxf5 {[%emt 0:01:33] White mates.} a1=Q {[%emt 0:00:13]} 57. Qf7+ {[%emt 0:01:02]} Kd6 {[%emt 0:02:31]} 58. Qf8+ {[%emt 0:00:15]} Kxd5 {[%emt 0:00:19]} 59. Qxb4 {[%emt 0:00:09]} Qa7+ {[%emt 0:00:54]} 60. g7 {[%emt 0:00:27]} Kxe6 {[%emt 0:00:01]} 61. Kh6 {[%emt 0:01:55]} Kf6 {[%emt 0:02:34]} 62. Qf4+ {[%emt 0:00:32]} Ke7 {[%emt 0:00:12]} 63. g8=Q {[%emt 0:00:17] Quite a comeback for White.   Weighted Error Value: White=0.48/Black=0.28 (precise) .  Loses game:     	White=2     	Black=3      Missed win:     	White=1     	Black=1      Mistake:       	White=3     	Black=3      Inaccurate:     	---       	Black=2      OK:         	White=9     	Black=13     Best:        	White=10    	Black=7      Strong:       	White=3     	Black=2      Brilliant:      	White=1     	---} 1-0

[Event "Fagernes GM Open Autumn 2024"]
[Site "Fagernes"]
[Date "2024.10.12"]
[Round "8.14"]
[White "Namitbir Singh Walia"]
[Black "Sherman, Raem"]
[Result "1-0"]
[ECO "C11"]
[WhiteElo "2351"]
[BlackElo "2390"]
[Annotator "TA"]
[PlyCount "93"]
[EventDate "2024.10.03"]
[EventType "swiss"]
[EventCountry "NOR"]
[SourceTitle "playchess.com"]
[Source "ChessBase"]
[SourceQuality "1"]
[TimeControl "40/6000:2400+30"]

{[%evp 16,93,16,15,12,16,47,52,43,45,39,27,31,26,152,152,139,145,175,162,162,138,150,0,153,0,160,154,164,150,153,145,173,170,167,156,170,171,215,177,199,134,137,97,95,96,135,67,64,66,145,134,184,185,150,31,132,113,239,186,176,138,179,164,162,170,190,195,376,337,335,248,467,442,5317,5317,2044,1457,1231,1195]} 1. e4 {[%emt 0:00:00]} e6 {[%emt 0:00:00]} 2. d4 {[%emt 0:00:00]} d5 {[%emt 0:00:00]} 3. Nc3 {[%emt 0:00:00]} Nf6 {[%emt 0:00:00]} 4. e5 {[%emt 0:00:00]} Nfd7 {[%emt 0:00:00]} 5. f4 {[%emt 0:00:00]} c5 {[%emt 0:00:00]} 6. Nf3 {[%emt 0:00:00]} Nc6 {[%emt 0:00:00]} 7. Be3 {[%emt 0:00:00]} a6 {[%emt 0:00:00]} 8. a3 {[%emt 0:00:00]} cxd4 {[%emt 0:00:00]} 9. Nxd4 {[%emt 0:00:00]} Bc5 {[%emt 0:00:00]} 10. Qd2 {[%emt 0:00:00]} g5 {[%emt 0:00:00]} 11. Nf3 {[%emt 0:00:00]} (11. fxg5 Bxd4 12. Bxd4 Nxd4 13. Qxd4 Qxg5 $17) 11... d4 {[%emt 0:00:00] White is slightly better.} 12. Bxd4 {[%emt 0:00:00]} Nxd4 {[%emt 0:00:00]} 13. Nxd4 {[%emt 0:00:00]} gxf4 {[%emt 0:00:44]} 14. Qxf4 {[%emt 0:00:00] 0-0-0 would now be deadly.} Bxd4 {[%emt 0:02:04]} (14... Nxe5 $1 $11 15. Ndb5 f6) 15. Qxd4 $16 {[%emt 0:00:00]} Qg5 {[%emt 0:01:01]} 16. Be2 $1 {[%emt 0:08:19]} Qxe5 {[%emt 0:02:46]} 17. Qf2 {[%emt 0:22:00]} Qf6 {[%emt 0:12:13]} 18. Qe3 {[%emt 0:05:59]} Qe5 {[%emt 0:00:56]} 19. Qf2 {[%emt 0:02:13]} Qf6 {[%emt 0:00:48]} 20. Qe3 {[%emt 0:14:42]} Qe5 {[%emt 0:01:48]} 21. Qf3 $36 {[%emt 0:00:00][%mdl 2048] Black is under strong pressure.} Qg7 {[%emt 0:04:49]} 22. O-O-O {[%emt 0:02:41] Ne4 is the strong threat.} Ne5 {[%emt 0:03:40]} 23. Qf4 {[%emt 0:07:37] And now Ne4 would win.} O-O {[%emt 0:04:39]} 24. Ne4 {[%emt 0:02:27] Hoping for Nf6+.} f5 {[%emt 0:00:26]} 25. Nd6 {[%emt 0:00:50]} Bd7 {[%emt 0:10:44]} 26. Rhe1 {[%emt 0:01:32]} Kh8 {[%emt 0:04:14]} 27. Qd4 {[%emt 0:07:34]} Bc6 {[%emt 0:07:20]} 28. g3 {[%emt 0:02:32]} (28. Bh5 $18 Ng4 29. Qxg7+ (29. Rxe6 Qxd4 30. Rxd4 Bxg2 $18) 29... Kxg7 30. Rxe6 Nxh2 31. Re7+ Kf6 32. Rxh7) 28... Ng6 {[%emt 0:08:49]} 29. Qe3 {[%emt 0:06:00]} e5 {[%emt 0:01:46]} 30. Bc4 {[%emt 0:00:27]} Qf6 {[%emt 0:06:12]} 31. Qh6 {[%emt 0:01:30]} (31. Qc5 $16) 31... b5 {[%emt 0:00:20]} 32. Bb3 {[%emt 0:00:21]} a5 {[%emt 0:01:26]} ({Black should play} 32... f4 $14) 33. h4 {[%emt 0:01:14][%cal Bh2h4,Bh4h5][%mdl 32] Strongly threatening h5. White has more active pieces.} e4 {[%emt 0:03:52]} (33... a4 $16) 34. Rf1 $18 {[%emt 0:04:24]} Ne7 {[%emt 0:01:08]} 35. Qh5 {[%emt 0:00:00]} (35. Qd2 $16) 35... Qg6 {[%emt 0:01:24]} (35... Be8 $1 $14 36. Qg5 Qxg5+ 37. hxg5 Bh5) 36. Qe2 $1 $16 {[%emt 0:01:45]} Rab8 {[%emt 0:01:30] A mistake that costs the game.} (36... a4 $16 37. Ba2 Qxg3) 37. h5 {[%emt 0:01:38]} Qf6 {[%emt 0:01:01]} 38. g4 {[%emt 0:01:39]} a4 {[%emt 0:02:34] [#]} 39. Nf7+ $1 {[%emt 0:01:22][%mdl 512]} Rxf7 {[%emt 0:00:13]} 40. Bxf7 {[%emt 0:00:00]} Qxf7 {[%emt 0:00:01] [#]} 41. gxf5 {[%emt 0:40:11] Threatens to win with Qh2.} Nxf5 $2 {[%emt 0:48:43]} (41... Re8 {was necessary.}) 42. Qh2 {[%emt 0:00:00]} Re8 {[%emt 0:00:00] Prevents Qe5+. aiming for ...e3.} 43. Qf4 {[%emt 0:00:00]} Bd7 $2 {[%emt 0:00:00] [#]} (43... Qxh5 {was worth a try.} 44. Qxf5 Qxf5 45. Rxf5 e3) 44. Qc7 $1 $18 {[%emt 0:00:00] White is clearly winning.} (44. Rxd7 Qxd7 45. Qxf5 Qxf5 46. Rxf5 e3 $16) 44... Re7 {[%emt 0:00:00] [#]} (44... Be6 $142 45. Qxf7 Bxf7) 45. Rxd7 $1 {[%emt 0:00:00][%mdl 512]} Rxd7 {[%emt 0:00:00]} 46. Qe5+ {[%emt 0:00:00]} Kg8 {[%emt 0:00:00]} 47. Rxf5 {[%emt 0:00:00] Weighted Error Value: White=0.27 (precise) /Black=0.39.  Mistake:       	White=3     	Black=8      Inaccurate:     	---       	Black=2      OK:         	White=9     	Black=9      Best:        	---       	Black=5      Strong:       	White=2     	---        Brilliant:      	White=2     	---} ({Not} 47. Qxf5 Qxf5 48. Rxf5 Kg7 $16) 1-0

[Event "Fagernes GM Open Autumn 2024"]
[Site "Fagernes"]
[Date "2024.10.12"]
[Round "8.15"]
[White "Kanyamarala, Trisha"]
[Black "Sidhant, Mohapatra"]
[Result "1/2-1/2"]
[ECO "E14"]
[WhiteElo "2160"]
[BlackElo "2369"]
[Annotator "RC"]
[PlyCount "38"]
[EventDate "2024.10.03"]
[EventType "swiss"]
[EventCountry "NOR"]
[SourceTitle "playchess.com"]
[Source "ChessBase"]
[SourceQuality "1"]
[TimeControl "40/6000:2400+30"]

1. d4 {[%emt 0:00:00]} d5 {[%emt 0:00:00]} 2. c4 {[%emt 0:00:00]} e6 {[%emt 0:00:00]} 3. Nf3 {[%emt 0:00:00]} Nf6 {[%emt 0:00:00]} 4. Nc3 {[%emt 0:00:00]} c6 {[%emt 0:00:00]} 5. e3 {[%emt 0:00:00]} Nbd7 {[%emt 0:00:00]} 6. Be2 {[%emt 0:00:00]} Bd6 {[%emt 0:00:15]} 7. O-O {[%emt 0:00:00]} O-O {[%emt 0:00:00]} 8. b3 {[%emt 0:00:00]} b6 {[%emt 0:00:00]} 9. Bb2 {[%emt 0:00:00]} Bb7 {[%emt 0:00:00]} 10. Bd3 {[%emt 0:00:00]} c5 {[%emt 0:03:53]} 11. cxd5 {[%emt 0:00:07]} exd5 {[%emt 0:00:55]} 12. Re1 {[%emt 0:01:12]} Re8 {[%emt 0:02:36]} 13. Rc1 {[%emt 0:00:38]} a6 {[%emt 0:03:23]} 14. Ne2 {[%emt 0:16:46]} Rc8 {[%emt 0:05:47]} 15. Ng3 {[%emt 0:03:06]} g6 {[%emt 0:00:00]} 16. Qe2 {[%emt 0:05:28]} Ne4 {[%emt 0:07:11]} 17. Red1 {[%emt 0:05:25]} Qe7 {[%emt 0:08:22]} 18. dxc5 {[%emt 0:08:45]} Ndxc5 {[%emt 0:00:55]} 19. Ba1 {[%emt 0:09:33]} Nxd3 {[%emt 0:07:03]} 1/2-1/2

[Event "Fagernes GM Open Autumn 2024"]
[Site "Fagernes"]
[Date "2024.10.12"]
[Round "8.16"]
[White "Myagmarsuren, Evsuld"]
[Black "Krivenko, Dion"]
[Result "0-1"]
[ECO "A38"]
[WhiteElo "2171"]
[BlackElo "2244"]
[Annotator "RC"]
[PlyCount "116"]
[EventDate "2024.10.03"]
[EventType "swiss"]
[EventCountry "NOR"]
[SourceTitle "playchess.com"]
[Source "ChessBase"]
[SourceQuality "1"]
[TimeControl "40/6000:2400+30"]

1. Nf3 {[%emt 0:00:00]} c5 {[%emt 0:03:34]} 2. c4 {[%emt 0:00:00]} g6 {[%emt 0:00:10]} 3. g3 {[%emt 0:00:00]} Bg7 {[%emt 0:00:00]} 4. Bg2 {[%emt 0:00:00]} Nc6 {[%emt 0:00:00]} 5. e3 {[%emt 0:00:00]} Nf6 {[%emt 0:00:00]} 6. O-O {[%emt 0:00:00]} O-O {[%emt 0:00:00]} 7. Nc3 {[%emt 0:00:00]} e5 {[%emt 0:06:44]} 8. d4 {[%emt 0:01:24]} d6 {[%emt 0:04:09]} 9. h3 {[%emt 0:10:21]} Bf5 {[%emt 0:19:44]} 10. d5 {[%emt 0:09:16]} Ne7 {[%emt 0:00:16]} 11. Re1 {[%emt 0:00:40]} a6 {[%emt 0:01:01]} 12. a3 {[%emt 0:07:42]} Qc8 {[%emt 0:09:09]} 13. Kh2 {[%emt 0:01:47]} Rb8 {[%emt 0:02:02]} 14. Bf1 {[%emt 0:08:13]} e4 {[%emt 0:09:34]} 15. Nd2 {[%emt 0:01:47]} h5 {[%emt 0:03:30]} 16. a4 {[%emt 0:04:18]} Qd7 {[%emt 0:06:29]} 17. Bg2 {[%emt 0:01:19]} b5 {[%emt 0:00:03]} 18. axb5 {[%emt 0:10:03]} axb5 {[%emt 0:00:00]} 19. Ndxe4 {[%emt 0:15:30]} Nxe4 {[%emt 0:01:05]} 20. Nxe4 {[%emt 0:00:00]} Bxe4 {[%emt 0:02:11]} 21. Bxe4 {[%emt 0:00:00]} bxc4 {[%emt 0:00:00]} 22. Qc2 {[%emt 0:07:57]} Rb4 {[%emt 0:00:00]} 23. Rb1 {[%emt 0:00:14]} Rfb8 {[%emt 0:00:32]} 24. Bd2 {[%emt 0:00:22]} Rxb2 {[%emt 0:01:25]} 25. Qxc4 {[%emt 0:00:00]} h4 {[%emt 0:09:41]} 26. g4 {[%emt 0:02:42]} Nc8 {[%emt 0:05:11]} 27. Kg2 {[%emt 0:03:08]} Qe8 {[%emt 0:00:53]} 28. Kf3 {[%emt 0:07:58]} Qe5 {[%emt 0:01:47]} 29. Qd3 {[%emt 0:02:16]} Ne7 {[%emt 0:01:45]} 30. Rxb2 {[%emt 0:01:48]} Rxb2 {[%emt 0:00:06]} 31. Rb1 {[%emt 0:00:00]} f5 {[%emt 0:00:28]} 32. gxf5 {[%emt 0:00:00]} gxf5 {[%emt 0:00:00]} 33. Bxf5 {[%emt 0:00:44]} Qxf5+ {[%emt 0:01:43]} 34. Qxf5 {[%emt 0:00:00]} Nxf5 {[%emt 0:00:00]} 35. Rxb2 {[%emt 0:00:00]} Bxb2 {[%emt 0:00:00]} 36. Ke4 {[%emt 0:00:00]} Ne7 {[%emt 0:00:00]} 37. Ba5 {[%emt 0:00:00]} Kf7 {[%emt 0:00:25]} 38. Bc7 {[%emt 0:00:00]} Nc8 {[%emt 0:00:41]} 39. Kd3 {[%emt 0:00:00]} Ke7 {[%emt 0:00:29]} 40. f4 {[%emt 0:00:00]} Kd7 {[%emt 0:00:57]} 41. Ba5 {[%emt 0:40:37]} Ne7 {[%emt 0:43:46]} 42. Be1 {[%emt 0:00:00]} Nxd5 {[%emt 0:00:00]} 43. Bxh4 {[%emt 0:00:00]} Kc6 {[%emt 0:00:00]} 44. Bg5 {[%emt 0:00:00]} Nb4+ {[%emt 0:00:00]} 45. Kc4 {[%emt 0:00:00]} d5+ {[%emt 0:00:00]} 46. Kb3 {[%emt 0:00:00]} Bh8 {[%emt 0:00:00]} 47. Be7 {[%emt 0:00:00]} Nd3 {[%emt 0:00:00]} 48. h4 {[%emt 0:00:00]} c4+ {[%emt 0:00:00]} 49. Kc2 {[%emt 0:00:00]} Kd7 {[%emt 0:00:00]} 50. Bf8 {[%emt 0:00:00]} Ne1+ {[%emt 0:00:00]} 51. Kd1 {[%emt 0:00:00]} Ng2 {[%emt 0:00:00]} 52. Ke2 {[%emt 0:00:00]} Nxh4 {[%emt 0:00:00]} 53. e4 {[%emt 0:00:00]} d4 {[%emt 0:00:00]} 54. e5 {[%emt 0:00:00]} Ke6 {[%emt 0:00:00]} 55. Kd2 {[%emt 0:00:00]} Ng6 {[%emt 0:00:00]} 56. Bc5 {[%emt 0:00:00]} Kd5 {[%emt 0:00:00]} 57. f5 {[%emt 0:00:00]} Kxc5 {[%emt 0:00:00]} 58. fxg6 {[%emt 0:00:00]} Bxe5 {[%emt 0:00:00]} 0-1

[Event "Fagernes GM Open Autumn 2024"]
[Site "Fagernes"]
[Date "2024.10.12"]
[Round "8.17"]
[White "Nagare Akhilesh"]
[Black "Advaitt Srikant Koduri"]
[Result "1/2-1/2"]
[ECO "D90"]
[WhiteElo "2245"]
[BlackElo "2162"]
[Annotator "RC"]
[PlyCount "84"]
[EventDate "2024.10.03"]
[EventType "swiss"]
[EventCountry "NOR"]
[SourceTitle "playchess.com"]
[Source "ChessBase"]
[SourceQuality "1"]
[TimeControl "40/6000:2400+30"]

1. d4 {[%emt 0:00:00]} d5 {[%emt 0:00:13]} 2. c4 {[%emt 0:00:00]} c6 {[%emt 0:00:00]} 3. Nf3 {[%emt 0:00:00]} Nf6 {[%emt 0:00:00]} 4. Nc3 {[%emt 0:00:00]} g6 {[%emt 0:00:00]} 5. cxd5 {[%emt 0:00:00]} cxd5 {[%emt 0:00:00]} 6. Bf4 {[%emt 0:00:00]} Nc6 {[%emt 0:02:04]} 7. e3 {[%emt 0:00:00]} Bg7 {[%emt 0:01:30]} 8. h3 {[%emt 0:00:00]} O-O {[%emt 0:00:54]} 9. Bd3 {[%emt 0:00:57]} a6 {[%emt 0:00:07]} 10. O-O {[%emt 0:00:07]} b5 {[%emt 0:04:41]} 11. Rc1 {[%emt 0:00:38]} Bb7 {[%emt 0:01:04]} 12. Ne5 {[%emt 0:09:33]} Rc8 {[%emt 0:32:35]} 13. Nxc6 {[%emt 0:03:10]} Bxc6 {[%emt 0:00:00]} 14. a4 {[%emt 0:12:32]} bxa4 {[%emt 0:08:07]} 15. Nxa4 {[%emt 0:01:53]} Bb5 {[%emt 0:00:03]} 16. Nc5 {[%emt 0:05:48]} Nd7 {[%emt 0:02:29]} 17. b4 {[%emt 0:14:46]} Qb6 {[%emt 0:08:11]} 18. Qe2 {[%emt 0:08:57]} Nf6 {[%emt 0:08:07]} 19. Bxb5 {[%emt 0:07:21]} axb5 {[%emt 0:04:25]} 20. Be5 {[%emt 0:00:57]} Rfd8 {[%emt 0:01:55]} 21. Bxf6 {[%emt 0:00:16]} Bxf6 {[%emt 0:00:58]} 22. Ra1 {[%emt 0:02:37]} Ra8 {[%emt 0:00:00]} 23. Ra5 {[%emt 0:01:17]} Rxa5 {[%emt 0:00:00]} 24. bxa5 {[%emt 0:00:00]} Qc6 {[%emt 0:00:00]} 25. Rc1 {[%emt 0:08:16]} b4 {[%emt 0:08:23]} 26. f4 {[%emt 0:05:20]} e6 {[%emt 0:01:03]} 27. Rb1 {[%emt 0:07:57]} Ra8 {[%emt 0:01:11]} 28. a6 {[%emt 0:00:00]} Be7 {[%emt 0:00:00]} 29. Rxb4 {[%emt 0:02:09]} Bxc5 {[%emt 0:00:00]} 30. dxc5 {[%emt 0:00:54]} Qxc5 {[%emt 0:02:02]} 31. Ra4 {[%emt 0:00:00]} h5 {[%emt 0:00:01]} 32. Qd3 {[%emt 0:00:21]} h4 {[%emt 0:02:51]} 33. Qd4 {[%emt 0:02:35]} Qc1+ {[%emt 0:01:32]} 34. Kh2 {[%emt 0:00:43]} Qe1 {[%emt 0:00:01]} 35. Qa1 {[%emt 0:00:10]} Qxe3 {[%emt 0:00:18]} 36. f5 {[%emt 0:00:11]} Qg3+ {[%emt 0:02:28]} 37. Kh1 {[%emt 0:00:00]} exf5 {[%emt 0:00:19]} 38. a7 {[%emt 0:00:00]} Qf2 {[%emt 0:00:36]} 39. Qf6 {[%emt 0:00:02]} Qe1+ {[%emt 0:00:20]} 40. Kh2 {[%emt 0:00:00]} Qg3+ {[%emt 0:00:00]} 41. Kh1 {[%emt 0:40:07]} Qe1+ {[%emt 0:06:05]} 42. Kh2 {[%emt 0:00:00]} Qg3+ {[%emt 0:03:46]} 1/2-1/2